bitfinex-derivatives/quotes_ETHF0:USTF0_20250214
["timestamp","ask_amount","ask_price","bid_price","bid_amount"]
[1739498715105,0.00372466,2687.5,2687.3,3.2078]
[1739498715306,0.00372466,2687.5,2687.3,3.95191]
[1739498715500,0.00372466,2687.5,2687.4,0.7441]
[1739498715700,0.00372466,2687.5,2687.3,3.2078]
[1739498715899,0.74780466,2687.5,2687.3,3.2078]
[1739498716203,0.74779466,2687.5,2687.3,3.2078]
[1739498716804,0.00372466,2687.5,2687.3,3.2078]
[1739498716999,0.00372466,2687.5,2687.4,0.7441]
[1739498718606,0.74781466,2687.5,2687.3,3.95191]
[1739498718904,0.74779466,2687.5,2687.3,3.95191]
[1739498719107,0.7441,2687.4,2687.3,3.2078]
[1739498720105,0.74780466,2687.5,2687.3,3.2078]
[1739498720305,0.00372466,2687.5,2687.3,3.2078]
[1739498720606,0.7441,2687.4,2687.3,3.2078]
[1739498720808,0.74780466,2687.5,2687.3,3.95191]
[1739498721008,0.00372466,2687.5,2687.4,0.7441]
[1739498721208,0.74780466,2687.5,2687.3,3.9519]
[1739498722410,0.7441,2687.4,2687.3,3.9519]
[1739498722910,0.74781466,2687.5,2687.3,3.95193]
[1739498723103,0.74781466,2687.5,2687.4,0.7441]
[1739498723304,0.74781466,2687.5,2687.3,3.2078]
[1739498723305,0.7441,2687.4,2687.3,3.2078]
[1739498723504,0.7441,2687.4,2687.3,3.95193]
[1739498723907,0.74780466,2687.5,2687.4,0.7441]
[1739498724120,0.74779466,2687.5,2687.4,0.7441]
[1739498725203,0.00372466,2687.5,2687.4,0.7441]
[1739498726412,0.74779466,2687.5,2687.4,0.7441]
[1739498726614,0.00372466,2687.5,2687.4,0.7441]
[1739498726920,0.00372466,2687.5,2687.4,4.01805202]
[1739498727208,0.74779466,2687.5,2687.4,4.01805202]
[1739498728110,3.2078,2689.6,2687.4,9.27395202]
[1739498728318,0.5869,2689.2,2688.7,6.48175202]
[1739498728511,0.5869,2689.2,2689.1,0.74363]
[1739498728715,0.553,2689.5,2689.0,6.48175202]
[1739498729011,1.678,2689.7,2689.3,3.2078]
[1739498729208,2.8249,2689.9,2689.3,3.2078]
[1739498729416,0.05966571,2689.8,2689.5,0.7435]
[1739498729613,2.8249,2689.9,2689.3,6.48175202]
[1739498729811,3.2078,2690.4,2689.6,6.48175202]
[1739498730008,2.04319889,2691.1,2690.3,6.48175202]
[1739498730009,3.2078,2691.1,2690.3,6.48175202]
[1739498730211,3.27395202,2691.5,2689.7,2.8048]
[1739498730212,3.2078,2691.5,2690.7,3.27395202]
[1739498730516,3.2078,2691.8,2691.2,3.2078]
[1739498730711,0.05962314,2691.7,2691.2,3.2078]
[1739498730911,3.2078,2691.8,2691.2,3.2078]
[1739498730912,3.9507,2691.8,2691.2,3.2078]
[1739498731108,3.2078,2691.8,2691.2,3.2078]
[1739498731316,0.05962312,2691.7,2691.2,3.2078]
[1739498731517,0.74296,2691.6,2691.2,3.2078]
[1739498731715,6.48175202,2691.8,2691.2,3.2078]
[1739498731915,0.74302,2691.3,2691.2,3.2078]
[1739498732214,0.74309,2691.1,2690.9,3.2078]
[1739498732417,3.07167,2691.2,2690.9,3.2078]
[1739498732617,2.3286,2691.2,2690.9,3.2078]
[1739498732917,3.07166,2691.2,2690.9,3.2078]
[1739498733110,2.3286,2691.2,2690.9,3.2078]
[1739498734516,0.74313,2690.9,2690.8,0.0055761]
[1739498734821,3.26744564,2690.9,2690.3,3.2078]
[1739498735117,0.7433,2690.3,2690.0,3.2078]
[1739498735421,0.74334,2690.2,2690.0,3.2078]
[1739498735723,0.74335,2690.1,2690.0,3.2078]
[1739498738119,3.01864,2690.2,2690.0,3.2078]
[1739498738715,1.731,2690.4,2690.0,7.00109026]
[1739498739421,0.74328,2690.4,2690.0,7.00109026]
[1739498739614,1.731,2690.5,2690.3,3.2078]
[1739498739819,1.29067,2690.8,2690.3,7.00109026]
[1739498740018,1.73,2690.9,2690.7,3.2078]
[1739498740319,0.00553976,2691.1,2690.7,3.2078]
[1739498740521,0.00553976,2691.1,2691.0,3.2078]
[1739498740818,0.00553976,2691.1,2691.0,3.9509]
[1739498743312,0.00553976,2691.1,2691.0,3.2078]
[1739498743517,0.74861976,2691.1,2691.0,3.2078]
[1739498744329,0.74318,2690.8,2690.7,3.2078]
[1739498744517,2.47818,2690.8,2690.7,3.2078]
[1739498745224,2.47816,2690.8,2690.7,3.2078]
[1739498745522,0.00553976,2691.1,2690.7,3.2078]
[1739498745720,0.00553976,2691.1,2691.0,3.2078]
[1739498746122,0.00553976,2691.1,2691.0,3.9509]
[1739498747025,0.5896,2691.9,2691.0,3.2078]
[1739498747324,0.74295,2691.6,2691.4,3.2078]
[1739498747723,0.74297,2691.5,2691.4,3.2078]
[1739498748827,0.74295,2691.6,2691.4,3.2078]
[1739498749027,1.735,2691.8,2691.4,3.2078]
[1739498749238,0.74296,2691.6,2691.4,3.2078]
[1739498749728,0.74302,2691.4,2691.2,0.0055761]
[1739498749924,0.743,2691.4,2691.2,0.0055761]
[1739498750524,0.74301,2691.4,2691.2,0.0055761]
[1739498751021,3.2078,2691.7,2691.2,0.0055761]
[1739498751227,0.74296,2691.6,2691.2,3.9564161]
[1739498751424,3.2078,2691.7,2691.2,3.2133761]
[1739498751626,1.734,2691.8,2691.2,7.00666636]
[1739498751932,2.3036,2692.4,2691.6,3.2078]
[1739498752119,0.74282,2692.1,2691.9,3.2078]
[1739498752829,0.74276,2692.3,2691.9,3.2078]
[1739498753029,2.3036,2692.4,2691.9,3.2078]
[1739498753030,0.5711,2692.5,2692.2,3.2078]
[1739498753330,3.2078,2692.9,2692.2,3.95055]
[1739498753331,0.74268,2692.6,2692.2,3.95055]
[1739498753527,0.74274,2692.3,2692.2,3.2078]
[1739498754030,0.5843,2692.5,2692.2,3.2078]
[1739498754227,0.74274,2692.3,2692.2,3.2078]
[1739498754432,0.74272,2692.4,2692.2,3.2078]
[1739498754627,0.5843,2692.5,2692.2,3.2078]
[1739498754823,0.74273,2692.4,2692.2,3.2078]
[1739498755636,0.74274,2692.3,2692.2,3.2078]
[1739498756735,0.74281,2692.1,2691.9,3.2078]
[1739498756927,0.74277,2692.2,2691.9,3.95064]
[1739498757134,0.5699,2692.8,2691.9,3.95064]
[1739498757135,3.2078,2693.2,2692.1,3.79329026]
[1739498757432,0.5786,2693.8,2693.0,7.00109026]
[1739498757635,0.5786,2693.8,2693.3,7.00109026]
[1739498757840,0.74237,2693.7,2693.3,7.00109026]
[1739498758033,0.5786,2693.8,2693.3,3.2078]
[1739498758331,0.74244,2693.4,2693.3,3.2078]
[1739498758731,2.51044,2693.4,2692.9,3.2078]
[1739498758929,1.768,2693.4,2693.0,0.74255]
[1739498759130,1.768,2693.4,2693.0,3.79329026]
[1739498759330,1.768,2693.4,2693.3,0.74247]
[1739498759532,1.88595,2693.8,2693.3,3.79329026]
[1739498759533,1.769,2693.7,2693.3,3.79329026]
[1739498759835,1.769,2693.7,2693.4,0.74243]
[1739498760034,1.769,2693.7,2693.6,0.74239]
[1739498760232,1.769,2693.7,2693.6,4.53568026]
[1739498760634,0.74232,2693.9,2693.6,3.79329026]
[1739498760829,0.74229,2694.0,2693.5,3.95019]
[1739498761035,3.95007,2694.1,2693.6,0.74237]
[1739498761335,1.75485313,2694.1,2693.8,3.2078]
[1739498761533,4.96265313,2694.1,2693.4,3.7916]
[1739498761739,0.74239,2693.6,2693.4,3.2078]
[1739498762128,4.96265313,2694.1,2693.4,3.2078]
[1739498762437,4.96265313,2694.1,2691.0,4.091]
[1739498762438,0.7425,2693.2,2693.1,3.2078]
[1739498762638,4.9748,2693.5,2692.8,3.2078]
[1739498762841,0.552,2693.4,2692.8,3.2078]
[1739498763036,0.74258,2693.0,2692.8,3.2078]
[1739498763245,1.1241,2693.4,2692.8,3.2078]
[1739498763436,0.74258,2692.9,2692.8,3.2078]
[1739498763740,0.74259,2692.9,2692.6,0.5838]
[1739498763937,1.766,2693.0,2692.6,0.5838]
[1739498764138,1.766,2693.0,2692.7,0.74262]
[1739498764335,1.766,2693.0,2692.6,0.5838]
[1739498764537,1.766,2693.0,2692.6,1.32645]
[1739498765033,2.50856,2693.0,2692.6,1.32645]
[1739498765338,1.766,2693.0,2692.6,0.5838]
[1739498765647,0.74263,2692.8,2692.5,3.2078]
[1739498765831,0.00810239,2692.9,2692.5,3.2078]
[1739498766036,0.00810239,2692.9,2692.7,0.74262]
[1739498766336,0.00810239,2692.9,2692.8,3.2078]
[1739498768245,0.75068239,2692.9,2692.8,3.2078]
[1739498768439,0.00810239,2692.9,2692.8,3.2078]
[1739498768640,0.00810239,2692.9,2692.4,4.38286636]
[1739498768641,0.74262,2692.8,2692.5,3.2078]
[1739498768848,0.00810239,2692.9,2692.5,3.2078]
[1739498769145,0.5909,2692.7,2692.4,0.0055761]
[1739498769344,1.33354,2692.7,2692.4,0.7482861]
[1739498769642,1.33354,2692.7,2692.4,0.0055761]
[1739498769839,0.5909,2692.7,2692.4,0.0055761]
[1739498770140,0.74269,2692.5,2692.4,0.0055761]
[1739498770337,0.74283,2692.0,2691.9,3.2078]
[1739498770839,1.765,2692.1,2691.3,3.2078]
[1739498770840,4.9728,2692.1,2691.3,3.2078]
[1739498771031,0.5909,2691.9,2691.3,3.2078]
[1739498771343,0.5909,2691.9,2691.8,0.74288]
[1739498771543,0.5964761,2691.9,2691.6,3.95072]
[1739498772344,0.0055761,2691.9,2691.6,3.2078]
[1739498772742,0.0055761,2691.9,2691.7,0.7429]
[1739498773138,0.0055761,2691.9,2691.8,0.74288]
[1739498773334,3.2078,2692.6,2692.3,0.74273]
[1739498773633,1.85631,2693.2,2692.5,3.2078]
[1739498773634,0.5971,2692.8,2692.5,3.2078]
[1739498773839,0.74254,2693.1,2692.7,0.74262]
[1739498774143,2.5085,2693.2,2692.8,3.95041]
[1739498774339,0.5971,2693.4,2692.8,3.95041]
[1739498774648,2.3641,2693.4,2692.8,3.95041]
[1739498774835,0.74251,2693.2,2692.8,3.95041]
[1739498775038,2.3641,2693.4,2692.8,3.95041]
[1739498775347,0.75068239,2692.9,2692.8,3.2078]
[1739498776544,0.00810239,2692.9,2692.6,0.588]
[1739498776747,0.74263,2692.7,2692.6,0.588]
[1739498777247,0.00810239,2692.9,2692.5,3.8022]
[1739498777443,0.74266,2692.6,2692.5,3.2078]
[1739498778347,0.74276,2692.3,2692.2,3.2078]
[1739498779241,1.763,2692.4,2691.9,3.2078]
[1739498779547,0.5905,2692.2,2691.9,3.2078]
[1739498779741,0.7428,2692.1,2691.9,3.2078]
[1739498779942,1.33329,2692.2,2691.9,3.2078]
[1739498780144,0.74281,2692.1,2691.9,3.2078]
[1739498780539,0.5905,2692.2,2691.9,3.2078]
[1739498780739,3.2078,2692.1,2691.5,3.2078]
[1739498780950,0.74294,2691.6,2691.5,3.2078]
[1739498783047,0.74292,2691.7,2691.5,3.2078]
[1739498783250,0.74294,2691.6,2691.5,3.2078]
[1739498784452,0.74299,2691.4,2691.3,0.0055761]
[1739498785356,1.85721,2691.8,2691.3,0.0055761]
[1739498785650,1.762,2691.9,2691.3,0.0055761]
[1739498785851,0.74297,2691.5,2691.3,0.0055761]
[1739498786047,3.8036,2692.1,2691.3,0.0055761]
[1739498786251,3.8036,2692.1,2691.5,3.2078]
[1739498786453,1.753,2692.0,2691.9,0.74284]
[1739498786645,1.753,2692.0,2691.8,3.2078]
[1739498787046,1.753,2692.0,2691.8,3.95066]
[1739498787257,2.49481,2692.1,2691.9,0.74285]
[1739498787552,0.74282,2692.1,2691.8,3.95067]
[1739498787753,1.751,2692.1,2691.8,3.2078]
[1739498787951,0.74284,2692.0,2691.8,3.2078]
[1739498788553,2.49383,2692.1,2691.8,3.95068]
[1739498788854,0.74283,2692.0,2691.8,3.95068]
[1739498789051,1.751,2692.1,2691.8,3.2078]
[1739498789243,1.751,2692.1,2691.8,7.00109026]
[1739498789449,3.7812,2692.8,2692.3,0.74273]
[1739498789756,2.3154,2692.7,2692.2,3.2078]
[1739498790156,0.05959421,2692.6,2692.2,3.95057]
[1739498790356,0.74271,2692.5,2692.2,3.95057]
[1739498790559,2.3154,2692.7,2692.4,0.7427]
[1739498790744,0.0595947,2692.6,2692.2,3.2078]
[1739498790945,0.00810239,2692.9,2692.7,0.74262]
[1739498791256,0.00810239,2692.9,2692.8,3.95041]
[1739498791454,0.00810239,2692.9,2692.8,4.54391]
[1739498793252,0.00810239,2692.9,2692.8,3.8013]
[1739498793447,0.75068239,2692.9,2692.8,3.2078]
[1739498794269,0.74266,2692.6,2692.5,3.2078]
[1739498794559,0.00810239,2692.9,2692.2,4.3218]
[1739498794749,1.80659075,2692.8,2692.2,4.3218]
[1739498794951,1.80659075,2692.8,2692.4,0.74271]
[1739498794952,0.74264,2692.7,2692.4,0.74271]
[1739498795656,1.747,2692.8,2692.5,3.2078]
[1739498795853,1.747,2692.8,2692.6,0.74265]
[1739498796057,1.747,2692.8,2692.5,3.2078]
[1739498796250,0.00810239,2692.9,2692.5,3.2078]
[1739498796451,0.74266,2692.6,2692.5,3.2078]
[1739498796653,1.75210239,2692.9,2690.9,2.936]
[1739498796654,0.74277,2692.3,2692.2,3.2078]
[1739498796956,1.745,2692.4,2692.2,3.2078]
[1739498797160,0.5934,2692.5,2692.3,0.74274]
[1739498797659,1.746,2692.7,2692.2,3.2078]
[1739498797862,2.48865,2692.7,2692.4,0.74271]
[1739498798254,0.74267,2692.6,2692.3,0.74273]
[1739498798760,1.746,2692.7,2692.2,3.2078]
[1739498798955,0.74273,2692.4,2692.2,3.2078]
[1739498799356,0.74269,2692.6,2692.3,0.74273]
[1739498799557,0.7427,2692.5,2692.3,0.74274]
[1739498800264,0.74267,2692.6,2692.3,0.74273]
[1739498802065,3.2078,2694.3,2693.7,0.74235]
[1739498802261,0.05956387,2694.2,2693.7,0.74235]
[1739498802565,0.05956387,2694.2,2693.7,0.0055761]
[1739498802961,0.05956387,2694.1,2693.8,0.74232]
[1739498803161,0.74228,2694.0,2693.7,0.7479261]
[1739498803364,1.85554,2694.3,2693.7,0.0055761]
[1739498803557,0.74233,2693.8,2693.7,0.0055761]
[1739498803859,0.801894,2693.8,2693.7,0.0055761]
[1739498804162,9.267364,2693.8,2693.0,3.2078]
[1739498804364,0.74252,2693.1,2693.0,3.2078]
[1739498804963,0.74252,2693.1,2692.4,3.7676]
[1739498804964,0.05958282,2693.1,2692.4,3.7676]
[1739498805165,0.05958282,2693.0,2692.7,0.74262]
[1739498805465,0.7481361,2693.0,2692.7,0.74262]
[1739498805662,1.758,2692.9,2692.5,0.0055761]
[1739498805869,1.758,2692.9,2692.8,3.95041]
[1739498806166,0.0055761,2693.0,2692.9,0.74258]
[1739498806355,0.0055761,2693.0,2692.9,5.08797026]
[1739498806562,1.759,2693.4,2693.3,0.74247]
[1739498806762,1.759,2693.4,2693.3,3.95027]
[1739498807064,5.529,2694.0,2693.3,3.2078]
[1739498807364,2.3212,2694.0,2693.7,3.2078]
[1739498807566,3.06349,2694.0,2693.7,3.95015]
[1739498807965,0.74232,2693.9,2693.7,3.2078]
[1739498808266,2.3212,2694.0,2693.7,3.95014]
[1739498808468,2.3212,2694.0,2693.8,0.74232]
[1739498808665,2.3212,2694.0,2693.7,3.2078]
[1739498809464,0.74235,2693.8,2693.4,3.2078]
[1739498809668,3.06349,2694.0,2693.7,0.74236]
[1739498810369,2.3212,2694.0,2693.7,0.74234]
[1739498810570,2.3212,2694.0,2693.4,3.2078]
[1739498810763,2.3212,2694.0,2693.7,3.2078]
[1739498810964,2.3212,2694.0,2693.7,3.95014]
[1739498811167,0.01582689,2694.6,2694.5,0.74214]
[1739498811362,0.28950119,2695.9,2694.5,8.77009026]
[1739498811571,3.2078,2696.7,2695.7,3.2078]
[1739498811865,0.594,2696.4,2695.7,3.2078]
[1739498812065,1.84151383,2696.3,2695.9,0.00556555]
[1739498812268,1.784,2696.9,2696.0,3.2078]
[1739498812467,0.05950218,2696.8,2696.0,3.2078]
[1739498812662,1.796,2696.7,2696.3,3.2078]
[1739498812867,0.74163,2696.4,2695.9,3.21336555]
[1739498813172,0.05950574,2696.3,2695.9,3.21336555]
[1739498813374,5.75736,2696.6,2695.9,3.95510555]
[1739498813668,0.05950404,2696.5,2695.9,3.21336555]
[1739498813973,0.80110404,2696.5,2695.9,3.21336555]
[1739498814163,0.7416,2696.5,2695.9,3.21336555]
[1739498814368,5.0158,2696.6,2695.9,3.21336555]
[1739498814570,0.05950509,2696.5,2695.9,3.21336555]
[1739498814770,0.74169,2696.2,2695.9,3.21336555]
[1739498815170,1.805,2696.1,2695.9,3.21336555]
[1739498815375,0.5574,2696.8,2695.9,3.21336555]
[1739498815376,3.2078,2696.9,2695.9,3.21336555]
[1739498815567,0.05949913,2696.8,2696.3,3.2078]
[1739498815875,5.0168,2696.9,2696.3,3.2078]
[1739498816068,0.74156,2696.6,2696.3,3.2078]
[1739498816269,0.74162,2696.4,2695.9,3.21336555]
[1739498816474,5.0168,2696.5,2695.9,3.21336555]
[1739498816680,0.74173,2696.0,2695.9,0.00556555]
[1739498816871,2.55173,2696.0,2695.9,0.00556555]
[1739498817066,1.81,2696.0,2695.9,0.00556555]
[1739498817365,1.811,2696.0,2695.9,0.00556555]
[1739498817871,2.55273,2696.0,2695.9,0.00556555]
[1739498819275,1.811,2696.0,2695.9,0.00556555]
[1739498819476,2.55273,2696.0,2695.9,0.00556555]
[1739498820073,2.55273,2696.0,2695.0,3.2078]
[1739498820074,7.87051922,2696.0,2695.0,3.2078]
[1739498820279,3.2078,2695.5,2695.0,3.2078]
[1739498820481,2.3591,2695.4,2695.0,3.2078]
[1739498820680,0.74195,2695.2,2695.0,3.2078]
[1739498820881,2.3591,2695.4,2695.0,3.2078]
[1739498820882,0.74197,2695.1,2695.0,3.2078]
[1739498821077,2.3591,2695.4,2694.8,0.01492]
[1739498821280,2.3591,2695.4,2694.8,0.76252555]
[1739498821281,0.80699373,2695.3,2694.8,0.76252555]
[1739498821580,0.00553037,2695.3,2694.8,0.02048555]
[1739498821776,0.74203,2694.9,2694.8,0.01442289]
[1739498821983,2.55703,2694.9,2694.8,0.01442289]
[1739498822878,1.814,2695.2,2694.8,0.01442289]
[1739498823082,1.814,2695.2,2694.9,3.2078]
[1739498823478,1.814,2695.2,2695.0,0.74199]
[1739498823881,1.814,2695.2,2694.9,3.2078]
[1739498824382,0.74746037,2695.3,2694.9,3.2078]
[1739498824383,0.00553037,2695.3,2694.9,3.2078]
[1739498824586,0.00553037,2695.3,2694.8,0.01442289]
[1739498824587,0.00553037,2695.3,2695.2,3.2078]
[1739498824882,0.00553037,2695.3,2694.8,3.22222289]
[1739498825176,0.00553037,2695.3,2695.1,3.2078]
[1739498825781,0.74195,2695.2,2695.1,3.2078]
[1739498826974,0.00553037,2695.3,2694.8,0.01442289]
[1739498827170,0.74203,2694.9,2694.8,0.01442289]
[1739498827581,0.80157316,2694.9,2694.8,0.01442289]
[1739498828281,0.80157316,2694.9,2694.0,3.2078]
[1739498828282,6.05954316,2694.9,2694.0,3.2078]
[1739498828483,0.74223,2694.2,2694.0,3.2078]
[1739498828782,1.809,2694.2,2693.8,0.74233]
[1739498829080,1.809,2694.2,2693.7,3.2078]
[1739498829485,1.809,2694.2,2693.7,3.21336555]
[1739498829680,5.0168,2694.2,2693.7,3.21336555]
[1739498829885,5.0168,2694.2,2693.7,0.00556555]
[1739498829886,0.74233,2693.8,2693.7,0.00556555]
[1739498830579,0.80190242,2693.8,2693.7,0.00556555]
[1739498830987,0.7425,2693.2,2693.1,3.2078]
[1739498831286,1.81,2693.2,2693.1,3.2078]
[1739498832078,2.5525,2693.2,2693.1,3.2078]
[1739498832489,1.81,2693.2,2693.1,3.2078]
[1739498832687,2.5525,2693.2,2693.1,3.2078]
[1739498832988,1.81,2693.2,2693.1,3.2078]
[1739498835487,1.801,2693.2,2692.9,0.00556555]
[1739498835687,2.54352,2693.2,2692.9,0.00556555]
[1739498835883,1.801,2693.2,2692.9,0.00556555]
[1739498836483,1.86058349,2693.1,2692.9,0.00556555]
[1739498836793,1.801,2693.1,2692.9,0.00556555]
[1739498837390,0.74255,2693.0,2692.9,0.00556555]
[1739498837582,4.00993866,2693.0,2692.9,0.00556555]
[1739498837897,0.74255,2693.0,2692.9,0.00556555]
[1739498839793,0.80213998,2693.0,2692.9,0.00556555]
[1739498839991,0.74255,2693.0,2692.9,0.00556555]
[1739498840289,2.54355,2693.1,2692.9,3.21336555]
[1739498840489,0.74255,2693.0,2692.9,3.21336555]
[1739498840992,2.53855,2693.0,2692.9,3.21336555]
[1739498841393,2.53855,2693.0,2692.9,0.00556555]
[1739498841896,2.59813903,2693.0,2692.9,0.00556555]
[1739498842294,2.53855,2693.0,2692.9,0.00556555]
[1739498843399,1.796,2693.0,2692.9,0.00556555]
[1739498843595,0.00556555,2693.4,2692.9,3.21336555]
[1739498843894,1.793,2693.3,2692.9,3.21336555]
[1739498844099,2.53549,2693.3,2693.0,0.74255]
[1739498844299,0.00556555,2693.4,2693.2,3.2078]
[1739498844491,0.00556555,2693.4,2693.3,0.74247]
[1739498845694,0.00556555,2693.4,2693.2,3.2078]
[1739498845998,0.74801555,2693.4,2693.2,3.2078]
[1739498846192,0.74247,2693.3,2693.2,3.2078]
[1739498847593,1.86174555,2693.4,2692.9,3.21336555]
[1739498847794,0.74255,2693.0,2692.9,3.21336555]
[1739498848498,0.74255,2693.0,2692.9,0.00556555]
[1739498848697,1.788,2693.1,2692.9,0.00556555]
[1739498848901,1.787,2693.3,2693.2,0.7425]
[1739498849403,1.787,2693.3,2693.2,3.9503]
[1739498849599,0.00556555,2693.4,2693.3,0.74247]
[1739498849896,0.00556555,2693.4,2693.3,5.07645162]
[1739498850098,0.74800555,2693.4,2693.3,0.5452]
[1739498851194,0.74247,2693.3,2693.2,3.2078]
[1739498852202,0.00556555,2693.4,2693.2,3.2078]
[1739498852398,0.74247,2693.3,2693.2,3.2078]
[1739498852898,2.52547,2693.3,2693.2,3.2078]
[1739498853104,0.74255,2693.0,2692.9,3.21336555]
[1739498853706,0.74255,2693.0,2692.9,0.00556555]
[1739498857002,0.5768,2693.2,2692.9,3.21336555]
[1739498857200,0.74255,2693.0,2692.9,3.21336555]
[1739498857701,1.778,2693.2,2693.1,0.74253]
[1739498858099,0.74801555,2693.4,2693.1,0.74253]
[1739498858301,0.74247,2693.3,2693.2,3.2078]
[1739498859105,0.00556555,2693.4,2693.0,0.554]
[1739498859803,0.74802555,2693.4,2693.1,0.74251]
[1739498860198,0.00556555,2693.4,2693.0,0.554]
[1739498860402,0.00556555,2693.4,2693.3,4.53125162]
[1739498860808,0.00556555,2693.4,2693.3,5.10415162]
[1739498861701,0.74800555,2693.4,2693.3,0.5729]
[1739498862010,0.74247,2693.3,2693.2,3.2078]
[1739498862507,2.52647,2693.3,2693.2,3.2078]
[1739498863709,3.11227,2693.3,2693.2,3.2078]
[1739498863900,2.3698,2693.3,2693.2,3.2078]
[1739498864108,0.5858,2693.3,2693.2,3.2078]
[1739498864304,3.11127,2693.3,2693.2,3.2078]
[1739498866410,2.3688,2693.3,2693.2,3.2078]
[1739498866910,3.11127,2693.3,2693.2,3.2078]
[1739498867614,1.783,2693.3,2693.2,3.2078]
[1739498867910,0.00556555,2693.4,2693.2,3.2078]
[1739498868106,1.78556555,2693.4,2693.3,0.74247]
[1739498868301,1.78556555,2693.4,2693.3,1.28177]
[1739498868706,1.78556555,2693.4,2693.3,0.5393]
[1739498869512,0.74247,2693.3,2693.2,3.2078]
[1739498871717,1.33697,2693.3,2693.2,3.2078]
[1739498872923,0.74247,2693.3,2693.2,3.2078]
[1739498873813,0.00556555,2693.4,2693.2,3.2078]
[1739498874015,0.74801555,2693.4,2693.2,3.9503]
[1739498874708,0.00556555,2693.4,2693.2,3.9503]
[1739498874909,0.74801555,2693.4,2693.2,3.9503]
[1739498875109,0.00556555,2693.4,2693.2,3.95028]
[1739498875513,0.74247,2693.3,2693.2,3.2078]
[1739498877113,0.74255,2693.0,2692.9,3.21336555]
[1739498877315,1.768,2693.0,2692.9,3.21336555]
[1739498877519,2.51055,2693.0,2692.9,3.21336555]
[1739498877718,1.768,2693.0,2692.9,3.95594555]
[1739498878423,1.767,2693.0,2692.9,3.95594555]
[1739498878719,1.767,2693.0,2692.9,3.21336555]
[1739498879023,1.767,2693.0,2692.9,3.95594555]
[1739498880422,0.00556555,2693.4,2693.3,0.74247]
[1739498880720,0.00556555,2693.4,2693.3,3.95027]
[1739498881325,1.767,2693.9,2693.3,10.3346]
[1739498881527,1.767,2693.9,2693.8,0.74233]
[1739498881728,1.767,2693.9,2693.7,3.95014]
[1739498882027,2.50931,2693.9,2693.7,3.95014]
[1739498882422,1.767,2693.9,2693.7,3.95014]
[1739498882721,0.74233,2693.8,2693.7,3.2078]
[1739498883328,1.767,2693.9,2693.4,3.2078]
[1739498883527,0.74241,2693.6,2693.4,3.95024]
[1739498883930,1.767,2693.9,2693.4,3.95024]
[1739498884126,0.74239,2693.6,2693.4,3.2078]
[1739498884527,1.767,2693.9,2693.4,3.2078]
[1739498884729,0.7424,2693.6,2693.4,3.2078]
[1739498884924,0.74238,2693.7,2693.4,3.2078]
[1739498885132,0.74238,2693.7,2693.4,3.95023]
[1739498885523,0.74239,2693.6,2693.4,3.2078]
[1739498885826,3.2078,2693.7,2693.1,3.2078]
[1739498886026,0.7425,2693.2,2693.1,3.2078]
[1739498886222,1.763,2693.2,2693.1,3.2078]
[1739498886630,1.763,2693.2,2693.0,0.74254]
[1739498887120,5.65575,2694.0,2693.1,3.2078]
[1739498887323,0.74236,2693.7,2693.4,0.74243]
[1739498887617,0.00556555,2694.1,2693.6,3.2078]
[1739498887823,0.05956565,2694.0,2693.6,3.2078]
[1739498888026,1.771,2694.0,2693.8,0.74231]
[1739498888429,1.771,2694.0,2693.7,0.5918]
[1739498888728,1.771,2694.0,2693.7,1.33414]
[1739498888924,0.74233,2693.8,2693.7,0.5918]
[1739498889119,1.771,2694.0,2693.3,3.2078]
[1739498889329,0.74243,2693.5,2693.3,3.2078]
[1739498889532,0.74244,2693.4,2693.3,3.2078]
[1739498890433,1.769,2693.5,2692.9,3.21336555]
[1739498890625,0.05957745,2693.4,2692.9,3.21336555]
[1739498890827,0.05957745,2693.4,2692.9,3.95593555]
[1739498891028,0.74252,2693.2,2692.9,3.95593555]
[1739498891522,0.7425,2693.2,2692.9,3.95592555]
[1739498891721,0.74254,2693.1,2692.9,3.21336555]
[1739498892129,0.74255,2693.0,2692.9,3.21336555]
[1739498892534,3.62507,2693.5,2692.9,3.21336555]
[1739498892735,0.05957834,2693.4,2692.9,3.21336555]
[1739498892930,0.05957834,2693.4,2692.9,3.95592555]
[1739498893230,0.7425,2693.2,2692.9,3.95593555]
[1739498893433,0.7425,2693.2,2692.9,3.95037]
[1739498893640,0.74253,2693.1,2692.9,3.94985134]
[1739498894138,0.74253,2693.1,2692.9,3.20728134]
[1739498894430,1.85611,2693.4,2692.9,3.20728134]
[1739498894632,0.74255,2693.0,2692.9,3.20728134]
[1739498895032,3.62507,2693.5,2692.9,3.20728134]
[1739498895338,0.74254,2693.1,2692.9,3.20728134]
[1739498895538,0.74255,2693.0,2692.9,3.20728134]
[1739498895836,0.74255,2693.1,2692.9,3.20728134]
[1739498896138,0.74255,2693.1,2692.9,3.94986134]
[1739498896139,0.74254,2693.1,2692.9,3.94986134]
[1739498896339,1.85598,2693.6,2693.0,0.74254]
[1739498896536,1.76,2693.2,2693.0,0.74254]
[1739498896941,2.5025,2693.2,2693.0,0.74254]
[1739498897633,0.74254,2693.1,2692.9,3.94985134]
[1739498898527,0.74248,2693.3,2693.1,0.7425]
[1739498898734,0.74248,2693.3,2693.2,3.2078]
[1739498899348,1.85606,2693.5,2692.8,3.95039]
[1739498899542,1.85617,2693.4,2692.8,3.2078]
[1739498899748,1.85606,2693.5,2692.8,3.2078]
[1739498900048,1.85625,2693.2,2692.8,3.2078]
[1739498900245,0.74258,2692.9,2692.8,3.2078]
[1739498900450,3.61618,2693.3,2692.8,3.2078]
[1739498900647,0.74256,2693.0,2692.8,3.95039]
[1739498900951,1.76,2693.3,2692.8,3.2078]
[1739498901245,2.50248,2693.3,2693.1,3.95031]